Cogmind - Beta 17 @@@ ROGUE MODE // 2026.06.30 @ 17:54:50 Player: Jay Result: Destroyed by G-47 Trooper with Particle Gun Performance ------------- Evolutions (0) 0 Regions Visited (1) 200 Robots Destroyed (7) 35 Value Destroyed (112) 112 Prototype IDs (0) 0 Alien Tech Used (0) 0 Bonus (0) 0 TOTAL SCORE: 347 Bonus ------- None Cogmind --------- Core Integrity 0/250 Matter 157/300 Energy 89/100 System Corruption 0% Temperature Cool (14) Movement Flying (200) Ox2 Location -10/Materials Parts ------- > --- POWER (1) -------- (None) > --- PROPULSION (2) --- Flight Unit > --- UTILITY (2) ------ Medium Storage Unit Improved Terrain Scanner > --- WEAPON (2) ------- Small Laser > --- INVENTORY (10) --- Flight Unit Heat Sink Heat Sink Small Storage Unit Sensor Array Peak State ------------ > --- POWER ------------ Ion Engine > --- PROPULSION ------- Flight Unit Flight Unit > --- UTILITY ---------- Small Storage Unit Improved Terrain Scanner > --- WEAPON ----------- Small Laser > --- INVENTORY -------- Heat Sink [Rating: 8] Favorites ----------- Power Ion Engine Engine Ion Engine Propulsion Light Treads Treads Light Treads Flight Unit Flight Unit Utility Small Storage Unit Device Seismic Detector Storage Small Storage Unit Weapon Small Laser Energy Gun Small Laser Ballistic Gun Light Assault Rifle Ballistic Cannon Light Cannon Build | -11 -10 ------- Run | Yrd Mat Slots Evolved . | . . Power . | . . Propulsion . | . . Utility . | . . Weapon . | . . Parts Attached 16 | 8 8 Power 3 | 2 1 Engine 3 | 2 1 Core . | . . Reactor . | . . Propulsion 4 | 2 2 Treads 2 | 2 . Leg . | . . Wheel . | . . Hover . | . . Flight 2 | . 2 Utility 4 | 2 2 Device 2 | 1 1 Storage 2 | 1 1 Processor . | . . Hackware . | . . Protection . | . . Artifact . | . . Weapon 5 | 2 3 Energy Gun 3 | 2 1 Energy Cannon . | . . Ballistic Gun 1 | . 1 Ballistic Cannon 1 | . 1 Launcher . | . . Special Weapon . | . . Impact Weapon . | . . Slashing Weapon . | . . Piercing Weapon . | . . Special Melee Weapon . | . . Unidentified Prototypes . | . . Parts Lost 7 | . 7 Power 2 | . 2 Propulsion 3 | . 3 Utility 1 | . 1 Weapon 1 | . 1 Highest Loss Streak 4 | . 4 To Critical Strikes . | . . Average Backups 3 | 1 3 Power . | . . Propulsion . | . . Utility 1 | . 1 Weapon 1 | 1 1 Tool/Special . | . . Unused Backups 4 | . 4 Power . | . . Propulsion 1 | . 1 Utility 3 | . 3 Weapon . | . . Tool/Special . | . . Average Slot Usage (%) 83 | . 83 Engine 10 | . 10 Treads 14 | . 14 Flight 8 | . 8 Device 12 | . 12 Storage 14 | . 14 Energy Gun 20 | . 20 Peak Build Rating 8 | 7 8 Average Rating 6 | 4 6 On Entrance 3 | . 7 Avg Prop Armor Cover (%) . | . . Naked Turns . | . . Heaviest Build 17 | 14 17 Greatest Support 40 | 40 40 Greatest Overweight (x) 4 | 1 4 Average Overweight (x) . | . . Largest Inventory Capacity 10 | 8 10 Average Capacity 8 | 7 8 Most Carried 7 | 5 7 Average Carried 3 | 1 4 Final Capacity 10 | 8 10 Final Carried 5 | 3 5 Class Distribution -------------------- 100% | Mutant Dominant Class ---------------- Mutant | -10/Materials Resources | -11 -10 ----------- Run | Yrd Mat Matter Collected 358 | 261 97 Remotely . | . . Salvage Created 172 | 57 115 Parts 15 | 7 8 Haulers Intercepted . | . . Recyclers Shooed . | . . Parts Field Recycled . | . . Retrieved Matter . | . . Parts Self-Destructed . | . . Prevented . | . . Parts Restored . | . . Kills | -11 -10 ------- Run | Yrd Mat Combat Hostiles Destroyed 5 | . 5 Guns 5 | . 5 Classes Destroyed 3 | 1 2 Tunneler 2 | 2 . Swarmer 3 | . 3 Grunt 2 | . 2 Best Kill Streak 2 | 2 2 Combat Bots Only 2 | . 2 Max Kills in Single Turn 1 | 1 1 Gunslinging . | . . Exploded . | . . Melee . | . . Uniques/NPCs Destroyed . | . . Combat | -11 -10 -------- Run | Yrd Mat Hostile Shots Fired 101 | . 101 Missed 16 | . 16 Hits 85 | . 85 Projectile 85 | . 85 Critical Strikes 2 | . 2 Damage Taken 962 | . 962 Core 265 | . 265 Absorbed by Shields . | . . Core Remaining (%) 100 | 100 . Volleys Fired 45 | 4 41 Largest 2 | 2 2 Hottest 90 | 90 90 Shots Fired 69 | 8 61 Gun 66 | 8 58 Cannon 3 | . 3 Launcher . | . . Special . | . . Kinetic 8 | . 8 Thermal 61 | 8 53 Explosive . | . . Electromagnetic . | . . Robot Hit Streak 4 | 4 4 Robot Miss Streak 4 | 1 4 Penetration Max . | . . Secondary Targets 1 | . 1 Max Gunslinging Chain 1 | . 1 Shots Hit Robots 37 | 5 32 Core Hits 13 | 3 10 Critical Kills . | . . Critical Parts Destroyed . | . . Critical Strikes 1 | . 1 Burn 1 | . 1 Melee Attacks . | . . Impact . | . . Slashing . | . . Piercing . | . . Sneak Attacks . | . . Combat Hostiles . | . . Follow-up Attacks . | . . Damage Inflicted 482 | 61 421 Guns 426 | 61 365 Cannons 56 | . 56 Explosions . | . . Melee . | . . Ramming . | . . Kinetic 84 | . 84 Thermal 398 | 61 337 Explosive . | . . Electromagnetic . | . . Impact . | . . Slashing . | . . Piercing . | . . Highest Corruption . | . . Average Corruption . | . . Corruption Purged . | . . Corruption Blocked . | . . Overload Shots . | . . Overflow Damage . | . . Projectiles . | . . Explosions . | . . Melee . | . . Knockbacks 2 | . 2 Impact . | . . Kinetic 2 | . 2 Secondary . | . . Self-Inflicted Damage . | . . Shots . | . . Rammed . | . . Targets Rammed . | . . Kicked . | . . Crushed . | . . Highest Temperature 502 | 120 502 Average Temperature 181 | 61 199 Received Heat Transfer 429 | . 429 Effects 14 | . 14 Shutdowns 4 | . 4 Matter Decay 3 | . 3 Short Circuit 3 | . 3 Damage (major) 4 | . 4 Siege Activations . | . . Martial Activations . | . . Shielding Activations . | . . Robots Disrupted . | . . Combat Hostiles . | . . Robots Corrupted . | . . Combat Hostiles . | . . Parts Fried . | . . Impact Corruptions . | . . Robots Melted . | . . Combat Hostiles . | . . Parts Melted . | . . Heat Transferred 1116 | 173 943 Parts Sabotaged . | . . Parts Stolen . | . . Parts Stripped . | . . Power Chain Reactions . | . . Alert | -11 -10 ------- Run | Yrd Mat Maximum Alert Level . | . . Low Security (%) 100 | 100 100 Level 1 . | . . Level 2 . | . . Level 3 . | . . Level 4 . | . . Level 5 . | . . High Security . | . . Max Security . | . . Peak Influence 65 | 5 65 Initial . | . . Average 11 | . 12 Influence Increases 175 | 10 165 Destroy 0b10 Robot/C 100 | . 100 Destroy 0b10 Robot/NC 10 | 10 . Destroy Leader 20 | . 20 Lose Combat Pursuer 45 | . 45 Influence Decreases 175 | 10 165 Time Decay 135 | 10 125 Lost Part 40 | . 40 Squads Dispatched 1 | . 1 Investigation . | . . Extermination . | . . Reinforcement 1 | . 1 Assault . | . . Garrison . | . . Intercept . | . . Searches Triggered . | . . Construction Impeded . | . . Haulers Reinforced . | . . Active Scanning Responses . | . . Cargo Convoy Interrupts . | . . Stealth | -11 -10 --------- Run | Yrd Mat Distress Signals 1 | . 1 Communications Jammed . | . . Distress Signals . | . . Times Spotted 13 | . 13 Peak Tracking Total 5 | . 5 Tactical Retreats 3 | . 3 Traps | -11 -10 ------- Run | Yrd Mat Traps Triggered 1 | . 1 Indirectly . | . . Trap Hack Attempts . | . . Triggered . | . . Disarmed . | . . Reprogrammed . | . . Reused . | . . Traps Extracted . | . . Installed . | . . Triggered . | . . Machines | -11 -10 ---------- Run | Yrd Mat Machines Disabled . | . . Max in Single Turn . | . . Machines Repaired . | . . Machines Dismantled . | . . Machines Sabotaged . | . . Overloaded Fab Kills . | . . Hacking | -11 -10 --------- Run | Yrd Mat Machines Accessed 1 | . 1 Terminals . | . . Fabricators . | . . Repair Stations . | . . Recycling Units 1 | . 1 Scanalyzers . | . . Garrison Access . | . . Total Hacks 3 | . 3 Successful 2 | . 2 Failed 1 | . 1 Catastrophic . | . . Database Lockouts . | . . Manual . | . . Terminals . | . . Fabricators . | . . Repair Stations . | . . Recycling Units 3 | . 3 Scanalyzers . | . . Garrison Access . | . . Terminal Hacks . | . . Fabricator Hacks . | . . Repair Station Hacks . | . . Recycling Unit Hacks 2 | . 2 Report Inventory 1 | . 1 Retrieve Matter 1 | . 1 Scanalyzer . | . . Garrison Access Hacks . | . . Unauthorized Hacks . | . . Terminals . | . . Fabricators . | . . Repair Stations . | . . Recycling Units . | . . Scanalyzers . | . . Garrison Access . | . . Data Cores Recovered . | . . Used . | . . Hacking Detections . | . . Full Trace Events . | . . Feedback Events . | . . Feedback Blocked . | . . Robot Schematics Acquired . | . . Robots Built . | . . Authchips . | . . Time . | . . Total Robot Build Rating . | . . Part Schematics Acquired . | . . Parts Built . | . . Authchips . | . . Time . | . . Total Part Build Rating . | . . Part Studies Acquired . | . . Parts Repaired . | . . Time . | . . Parts Recycled . | . . Recycled Matter . | . . Retrieved Matter . | . . Retrieved Components . | . . Parts Scanalyzed . | . . Part Schematics Acquired . | . . Parts Damaged . | . . Bothacking | -11 -10 ------------ Run | Yrd Mat Used RIF Installer . | . . Robots Hacked . | . . Non-combat . | . . Combat . | . . Robot Hacks Applied . | . . Relay Couplers Released . | . . Fabnet Peak Effective % . | . . Robots Rewired . | . . Allies Hacked . | . . Hacks Repelled . | . . Allies | -11 -10 -------- Run | Yrd Mat Total Allies . | . . Largest Group . | . . Highest-Rated Group . | . . Highest-Rated Ally . | . . Total Orders . | . . Ally Attacks . | . . Total Damage . | . . Kills . | . . Allies Corrupted . | . . Allies Melted . | . . Intel | -11 -10 ------- Run | Yrd Mat Active Infowar (turns) 493 | 12 481 Terrain 232 | . 232 Seismic 261 | 12 249 Robot Analysis Total . | . . Derelict Logs Recovered . | . . Drone Launches . | . . Drone Recoveries . | . . Exploration | -11 -10 ------------- Run | Yrd Mat Turns Passed 634 | 89 545 Spaces Moved 225 | 58 167 Core 48 | 31 17 Treads 109 | 27 82 Legs . | . . Wheels . | . . Hover . | . . Flight 68 | . 68 Fastest Speed 37 | 50 37 Average Speed 152 | 104 168 Slowest Speed 360 | 160 360 Overloaded Moves . | . . Propulsion Burnouts . | . . Robots Hopped . | . . Potential Cave-ins . | . . Cave-ins Triggered . | . . Exploration Rate (%) 19 | 4 35 Regions Visited 1 Branch Regions . Pre-discovered Areas . | . . Known Exits Taken . | . . Unknown Exits Taken 1 | 1 . Scrap Searched . | . . Spaces Dug . | . . Terrain Destroyed . | . . Melee . | . . Projectile . | . . AOE . | . . Terrain Rammed . | . . Walls Destroyed . | . . Machines Disabled . | . . Actions | -11 -10 --------- Run | Yrd Mat Total 451 | 78 373 Wait 136 | . 136 Move 224 | 57 167 Hop . | . . Pick Up 21 | 8 13 Fast Attach 2 | 2 . Attach 15 | 5 10 Detach . | . . Swap 2 | 1 1 Drop 6 | 1 5 Fire 45 | 4 41 Melee . | . . Ram . | . . Kick . | . . Crush . | . . Escape Stasis . | . . Rewire . | . . Trap . | . . Miscellaneous . | . . Route ------- -11/Scrapyard -10/Materials (discovered 2 exits: [*Mat] / [Sub]) History --------- Turn | Location | Event 3 | -11/Scrapyard | Discovered new exit (range 15) 90 | -11/Scrapyard | Entered Materials 308 | -10/Materials | Build established: Mutant 382 | -10/Materials | Core integrity fell below 50% 418 | -10/Materials | Core integrity fell below 20% 439 | -10/Materials | Discovered new exit (range 10) 440 | -10/Materials | Lost 4 parts (1p2n1w) 512 | -10/Materials | Discovered new exit (range 15) 635 | -10/Materials | Destroyed by G-47 Trooper with Particle Gun Last Messages --------------- 00487_ R-06 Scavenger collects Broken Lgt. Cannon. 00491_ Acquired Med. Storage Unit. 00494_ R-06 Scavenger collects Broken Lgt. Assault Rifle. 00498_ R-06 Scavenger collects Broken Sml. Laser. 00509_ Acquired Heat Sink. 00512_ EXIT=FOUND 00536_ Acquired Sensor Array. 00554_ K-01 Serf collects debris. 00591_ K-01 Serf cleans the Nuclear Reactor. 00617_ K-01 Serf cleans the Electrolysis Chamber. 00617_ Flight Unit destroyed. 00624_ K-01 Serf cleans the Electrolysis Chamber. 00627_ Ion Engine destroyed. 00627_ K-01 Serf cleans the Electrolysis Chamber. Map ----- +----------------------------------------------------+ | ?????????????????????????????????????????????????? | | ?????????????????????????????????????????????????? | | ?????????????????????????????????????????????????? | | ?????????????????????????????????????????????????? | | ?????????????????????????????????????????????????? | | ?????????????????????????????????????????????????? | | ?????????????????????????????????????????????????? | | ?????????????????????????????????????????????????? | | ?????????????????????????????????????????????????? | | ?????????????????????????????????????????????????? | | ?????????????????????????????????????????????????? | | ?????????????????????????????????????????????????? | | ????????????????????#? ??????????????????????????? | | ?????????????????????????????????????????????????? | | ?????????????????????????????????????????????????? | | ??????????????????????????????????####???????????? | | ????????????????+????????????????? ???????????? | | ????????????"?????????? ????????? ??????????? | | ???????????????????????? ???????!! ??????????? | | ??????????????????????????????? !! ??????????? | | ????????????????? ????????????? ???????????? | | ????????????????????#######? ? ????????????? | | ????????#?#?????????# #?? ?????????????? | | ????????????????????# """ ## """ ?????????????? | | ?????????#?#????????# """ ## """ ?????????????? | | ????????????????????# """@# """ ?????????? | | ????????????????????# g ^ ???????? | | ????????????????????# """ # ???????? | | ?#???????######## ??# """ # """ ???????? | | ?????#???# # """k#? """ ?????????????? | | ???? + #? """ ?????????????? | | ????? #??# # #?? ?????????????? | | ????? ???#########??# #?? ????????????? | | ????? ???#?# ?# #? """ ????????????? | | ????# #????# #+##### """ #???????????? | | ????# #?#????"" # """ ? ??????????? | | ? ??# #??????"??? + ???????????? | | ????# ##??????"?????# ???????????? | | ?? # T???????"?????## ####+########?????????????? | | ????# #?????????? ???# #?????????????????????????? | | ???## ##???? ????? ??# #? ???????????????????????? | | ???##%###????????????# #?????? ???#??????????????? | | #### ############### #????? ???????????????????? | | " ^ !! #?????????????????????????? | | #### ### ! #?? ????"???? ????????????? | | ??######?# ^! #?? ? ????????????????????? | | ???#?#?#?# #?????????????????????????? | | ?????????# #?#??????#????????????????? | | ?????????# """ #?????????????????????????? | | ????????# """ ##+#####???????????????????????? | +----------------------------------------------------+ Best States ------------- Heat Dissipation 25 Energy Generation 10 Energy Capacity 250 Matter Stores 300 Matter Capacity 300 Sight Range 16 Terrain Scan Range 16 Terrain Scan Density 10 Evasion (%) 50 Recoil Reduction 2 Item Schematics ----------------- None Robot Schematics ------------------ None Fabricated ------------ Nothing Repaired ---------- Nothing Studied --------- None Alien Tech Used ----------------- None Achievements -------------- None Challenges ------------ None Game ------ Seed ShadePiercingCape Manual? 0 Play Time 00:12:32 Cumulative 56.2 hours Start 2026.06.30 @ 17:14:45 End 2026.06.30 @ 17:54:50 Sessions 1 Manual Loads 0 Difficulty Rogue Special Mode None Game No. 106 Rogue 94 Adventurer 12 Explorer 0 Win Type - Total 0 Types 0/0/0/0/0/0/0/0/0/0 Lore% 10 Gallery% 22 Achievement% 14 Wizard Run 0 Options --------- Layout 2 ASCII 0 Keyboard 0 Movement Mouse Keybinds 0 Fullscreen 2 Font 24/Proggy Map View 50x44 Zoom Use 10% Tactical HUD 1 Map Filters NONE Filters NONE Steam 1 RUN: 4613f532-ea2c-4f3d-93b3-bdf3ae35acd2